[Event "Titled Tuesday Blitz August 22 Late 2023"]
[White "Andrews, Todd"]
[Black "Vachier-Lagrave, Maxime"]
[WhiteFideId "2012456"]
[BlackFideId "623539"]
[WhiteElo "2374"]
[BlackElo "3124"]
[Result "0-1"]
[Round "3"]
[TimeControl "180+1"]
[Date "2023.08.22"]
[WhiteClock "0:00:00"]
[BlackClock "0:00:49"]
[Board "48"]

1. e4 {[%clk 0:03:00]}  e5 {[%clk 0:02:59]} 2. d4 {[%clk 0:02:59]}  exd4 {[%clk 0:02:59]} 3. Qxd4 {[%clk 0:03:00]}  Nc6 {[%clk 0:02:59]} 4. Qe3 {[%clk 0:03:01]}  Nf6 {[%clk 0:02:57]} 5. c4 {[%clk 0:02:59]}  Bb4+ {[%clk 0:02:55]} 6. Bd2 {[%clk 0:02:56]}  Qe7 {[%clk 0:02:50]} 7. Nc3 {[%clk 0:02:55]}  O-O {[%clk 0:02:45]} 8. f3 {[%clk 0:02:53]}  Bc5 {[%clk 0:02:45]} 9. Qg5 {[%clk 0:02:48]}  d6 {[%clk 0:02:38]} 10. O-O-O {[%clk 0:02:48]}  a5 {[%clk 0:02:08]} 11. h4 {[%clk 0:02:47]}  a4 {[%clk 0:01:59]} 12. h5 {[%clk 0:02:47]}  h6 {[%clk 0:01:58]} 13. Qg3 {[%clk 0:02:46]}  Kh8 {[%clk 0:01:56]} 14. a3 {[%clk 0:02:31]}  Nd4 {[%clk 0:01:48]} 15. Kb1 {[%clk 0:02:29]}  Nb3 {[%clk 0:01:47]} 16. Bf4 {[%clk 0:02:22]}  Bxg1 {[%clk 0:01:44]} 17. Rxg1 {[%clk 0:02:19]}  Nxh5 {[%clk 0:01:44]} 18. Qh2 {[%clk 0:02:17]}  Nxf4 {[%clk 0:01:43]} 19. Qxf4 {[%clk 0:02:18]}  Qe5 {[%clk 0:01:39]} 20. Qxe5 {[%clk 0:02:05]}  dxe5 {[%clk 0:01:40]} 21. Nd5 {[%clk 0:02:05]}  c6 {[%clk 0:01:39]} 22. Nb6 {[%clk 0:02:03]}  Ra7 {[%clk 0:01:34]} 23. Nxc8 {[%clk 0:02:01]}  Rxc8 {[%clk 0:01:34]} 24. Rd7 {[%clk 0:02:01]}  Kg8 {[%clk 0:01:32]} 25. g4 {[%clk 0:01:15]}  Nc5 {[%clk 0:01:30]} 26. Re7 {[%clk 0:00:57]}  f6 {[%clk 0:01:26]} 27. g5 {[%clk 0:00:57]}  hxg5 {[%clk 0:01:26]} 28. Bh3 {[%clk 0:00:51]}  Rd8 {[%clk 0:01:22]} 29. Bf5 {[%clk 0:00:51]}  Kf8 {[%clk 0:01:21]} 30. Rc7 {[%clk 0:00:50]}  Na6 {[%clk 0:01:21]} 31. Rc8 {[%clk 0:00:33]}  Rxc8 {[%clk 0:01:19]} 32. Bxc8 {[%clk 0:00:34]}  Nc5 {[%clk 0:01:18]} 33. Rh1 {[%clk 0:00:31]}  b6 {[%clk 0:00:58]} 34. Rh8+ {[%clk 0:00:24]}  Ke7 {[%clk 0:00:57]} 35. Bf5 {[%clk 0:00:21]}  Nb3 {[%clk 0:00:57]} 36. Rg8 {[%clk 0:00:20]}  Kd6 {[%clk 0:00:57]} 37. Rd8+ {[%clk 0:00:19]}  Kc5 {[%clk 0:00:57]} 38. Be6 {[%clk 0:00:20]}  Nd4 {[%clk 0:00:56]} 39. Bg8 {[%clk 0:00:18]}  Nxf3 {[%clk 0:00:55]} 40. Kc2 {[%clk 0:00:17]}  Nd4+ {[%clk 0:00:55]} 41. Kc3 {[%clk 0:00:17]}  g4 {[%clk 0:00:53]} 42. Rc8 {[%clk 0:00:14]}  g3 {[%clk 0:00:50]} 43. Bd5 {[%clk 0:00:07]}  g2 {[%clk 0:00:50]} 44. b4+ {[%clk 0:00:02]}  axb3 {[%clk 0:00:50]} 45. Bxc6 {[%clk 0:00:00]}  Nxc6 {[%clk 0:00:49]} 0-1


[Site "https://www.chess.com"]

[Event "Titled Tuesday Blitz August 22 Late 2023"]
[White "Di Berardino, Diego Rafael"]
[Black "Dubov, Daniil"]
[WhiteFideId "2105446"]
[BlackFideId "24126055"]
[WhiteElo "2630"]
[BlackElo "3040"]
[Result "0-1"]
[Round "3"]
[TimeControl "180+1"]
[Date "2023.08.22"]
[WhiteClock "0:00:00"]
[BlackClock "0:00:27"]
[Board "49"]

1. e4 {[%clk 0:03:00]}  c5 {[%clk 0:03:00]} 2. Nf3 {[%clk 0:03:00]}  e6 {[%clk 0:03:00]} 3. d4 {[%clk 0:02:59]}  cxd4 {[%clk 0:03:01]} 4. Nxd4 {[%clk 0:03:00]}  a6 {[%clk 0:03:02]} 5. Nc3 {[%clk 0:02:57]}  b5 {[%clk 0:03:02]} 6. Bd3 {[%clk 0:02:57]}  Bb7 {[%clk 0:03:02]} 7. O-O {[%clk 0:02:58]}  Nc6 {[%clk 0:03:03]} 8. Nxc6 {[%clk 0:02:57]}  Bxc6 {[%clk 0:03:03]} 9. Re1 {[%clk 0:02:55]}  Bd6 {[%clk 0:03:04]} 10. e5 {[%clk 0:02:33]}  Bc7 {[%clk 0:03:04]} 11. Qh5 {[%clk 0:02:22]}  Ne7 {[%clk 0:02:59]} 12. Ne4 {[%clk 0:02:12]}  Qb8 {[%clk 0:02:52]} 13. Ng5 {[%clk 0:01:41]}  Ng6 {[%clk 0:02:46]} 14. Nxh7 {[%clk 0:01:35]}  Nxe5 {[%clk 0:02:40]} 15. Bg5 {[%clk 0:01:21]}  Rg8 {[%clk 0:01:51]} 16. Be4 {[%clk 0:01:05]}  Bxe4 {[%clk 0:01:50]} 17. Rxe4 {[%clk 0:01:05]}  Ng6 {[%clk 0:01:51]} 18. Rae1 {[%clk 0:00:29]}  Rh8 {[%clk 0:01:34]} 19. f4 {[%clk 0:00:28]}  Nf8 {[%clk 0:01:14]} 20. Nf6+ {[%clk 0:00:15]}  gxf6 {[%clk 0:01:14]} 21. Qxh8 {[%clk 0:00:16]}  fxg5 {[%clk 0:01:14]} 22. f5 {[%clk 0:00:15]}  Qb6+ {[%clk 0:01:12]} 23. Kh1 {[%clk 0:00:15]}  O-O-O {[%clk 0:01:13]} 24. Qf6 {[%clk 0:00:12]}  Qd6 {[%clk 0:00:49]} 25. g3 {[%clk 0:00:12]}  exf5 {[%clk 0:00:44]} 26. Qxf5 {[%clk 0:00:11]}  Ne6 {[%clk 0:00:44]} 27. Qxf7 {[%clk 0:00:06]}  Qc6 {[%clk 0:00:44]} 28. Qf3 {[%clk 0:00:03]}  Rh8 {[%clk 0:00:38]} 29. Qg2 {[%clk 0:00:01]}  Kb8 {[%clk 0:00:34]} 30. R4e2 {[%clk 0:00:01]}  Qd6 {[%clk 0:00:33]} 31. Qf3 {[%clk 0:00:00]}  Qxg3 {[%clk 0:00:27]} 0-1


[Site "https://www.chess.com"]

[Event "Titled Tuesday Blitz August 22 Late 2023"]
[White "Bortnyk, Olexandr"]
[Black "Garcia Blanco, Omar"]
[WhiteFideId "14120828"]
[BlackFideId "2287153"]
[WhiteElo "3035"]
[BlackElo "2642"]
[Result "1/2-1/2"]
[Round "3"]
[TimeControl "180+1"]
[Date "2023.08.22"]
[WhiteClock "0:00:12"]
[BlackClock "0:00:10"]
[Board "50"]

1. e4 {[%clk 0:02:57]}  c5 {[%clk 0:02:59]} 2. c3 {[%clk 0:02:57]}  Nf6 {[%clk 0:02:57]} 3. e5 {[%clk 0:02:57]}  Nd5 {[%clk 0:02:58]} 4. d4 {[%clk 0:02:58]}  cxd4 {[%clk 0:02:59]} 5. Nf3 {[%clk 0:02:58]}  e6 {[%clk 0:02:59]} 6. cxd4 {[%clk 0:02:59]}  b6 {[%clk 0:02:59]} 7. Bc4 {[%clk 0:02:59]}  Ba6 {[%clk 0:02:59]} 8. Bxd5 {[%clk 0:02:59]}  exd5 {[%clk 0:02:59]} 9. Nc3 {[%clk 0:03:00]}  Bb4 {[%clk 0:02:57]} 10. Bg5 {[%clk 0:02:54]}  Qc8 {[%clk 0:02:51]} 11. Qb3 {[%clk 0:02:53]}  Bxc3+ {[%clk 0:02:47]} 12. bxc3 {[%clk 0:02:54]}  O-O {[%clk 0:02:32]} 13. Kd2 {[%clk 0:02:51]}  Nc6 {[%clk 0:02:08]} 14. Qxd5 {[%clk 0:02:50]}  Na5 {[%clk 0:02:08]} 15. Qe4 {[%clk 0:02:31]}  Qc4 {[%clk 0:01:16]} 16. Rhe1 {[%clk 0:01:56]}  f5 {[%clk 0:00:58]} 17. exf6 {[%clk 0:01:55]}  Rae8 {[%clk 0:00:57]} 18. Ne5 {[%clk 0:01:45]}  Qe6 {[%clk 0:00:42]} 19. f7+ {[%clk 0:00:28]}  Rxf7 {[%clk 0:00:42]} 20. Nxf7 {[%clk 0:00:16]}  Qxe4 {[%clk 0:00:41]} 21. Rxe4 {[%clk 0:00:17]}  Rxe4 {[%clk 0:00:41]} 22. Nd6 {[%clk 0:00:10]}  Re2+ {[%clk 0:00:40]} 23. Kd1 {[%clk 0:00:10]}  Rxf2 {[%clk 0:00:39]} 24. Rc1 {[%clk 0:00:05]}  Rxg2 {[%clk 0:00:36]} 25. Bf4 {[%clk 0:00:05]}  Bd3 {[%clk 0:00:30]} 26. c4 {[%clk 0:00:03]}  Rg1+ {[%clk 0:00:27]} 27. Kd2 {[%clk 0:00:03]}  Rxc1 {[%clk 0:00:28]} 28. Kxc1 {[%clk 0:00:04]}  Bxc4 {[%clk 0:00:26]} 29. Nc8 {[%clk 0:00:03]}  Nc6 {[%clk 0:00:21]} 30. a3 {[%clk 0:00:03]}  Nxd4 {[%clk 0:00:17]} 31. Kd2 {[%clk 0:00:03]}  Bf7 {[%clk 0:00:16]} 32. Nxa7 {[%clk 0:00:03]}  Ne6 {[%clk 0:00:14]} 33. Be3 {[%clk 0:00:03]}  b5 {[%clk 0:00:14]} 34. Nxb5 {[%clk 0:00:03]}  d5 {[%clk 0:00:14]} 35. a4 {[%clk 0:00:03]}  Be8 {[%clk 0:00:14]} 36. Kc3 {[%clk 0:00:03]}  Kf7 {[%clk 0:00:13]} 37. Kb4 {[%clk 0:00:03]}  Ke7 {[%clk 0:00:13]} 38. Nd4 {[%clk 0:00:02]}  Nxd4 {[%clk 0:00:12]} 39. Bxd4 {[%clk 0:00:03]}  g6 {[%clk 0:00:12]} 40. a5 {[%clk 0:00:03]}  Kd6 {[%clk 0:00:11]} 41. a6 {[%clk 0:00:04]}  Bc6 {[%clk 0:00:11]} 42. a7 {[%clk 0:00:05]}  Ba8 {[%clk 0:00:11]} 43. Kb5 {[%clk 0:00:05]}  Kd7 {[%clk 0:00:10]} 44. Kc5 {[%clk 0:00:05]}  h5 {[%clk 0:00:09]} 45. h4 {[%clk 0:00:05]}  Bb7 {[%clk 0:00:09]} 46. Be3 {[%clk 0:00:05]}  Ba8 {[%clk 0:00:10]} 47. Bf4 {[%clk 0:00:05]}  Bb7 {[%clk 0:00:10]} 48. Kd4 {[%clk 0:00:05]}  Ke6 {[%clk 0:00:10]} 49. Bg5 {[%clk 0:00:05]}  Ba8 {[%clk 0:00:10]} 50. Bd2 {[%clk 0:00:05]}  Bb7 {[%clk 0:00:09]} 51. Bc1 {[%clk 0:00:05]}  Ba8 {[%clk 0:00:10]} 52. Kc5 {[%clk 0:00:06]}  Kd7 {[%clk 0:00:09]} 53. Bf4 {[%clk 0:00:06]}  Bb7 {[%clk 0:00:08]} 54. Kd4 {[%clk 0:00:06]}  Ke6 {[%clk 0:00:08]} 55. Ke3 {[%clk 0:00:07]}  Ba8 {[%clk 0:00:08]} 56. Bc7 {[%clk 0:00:07]}  Bb7 {[%clk 0:00:09]} 57. Bb6 {[%clk 0:00:07]}  Ba8 {[%clk 0:00:09]} 58. Kf4 {[%clk 0:00:08]}  Bb7 {[%clk 0:00:09]} 59. Bd4 {[%clk 0:00:09]}  Ba8 {[%clk 0:00:09]} 60. Kg5 {[%clk 0:00:09]}  Kf7 {[%clk 0:00:09]} 61. Bf2 {[%clk 0:00:10]}  Bb7 {[%clk 0:00:09]} 62. Bg3 {[%clk 0:00:11]}  Ba8 {[%clk 0:00:10]} 63. Be5 {[%clk 0:00:11]}  Bb7 {[%clk 0:00:11]} 64. Ba1 {[%clk 0:00:12]}  Ba8 {[%clk 0:00:12]} 65. Bc3 {[%clk 0:00:13]}  Bb7 {[%clk 0:00:12]} 66. Bd4 {[%clk 0:00:14]}  Ba8 {[%clk 0:00:13]} 67. Kf4 {[%clk 0:00:15]}  Bb7 {[%clk 0:00:14]} 68. Ke5 {[%clk 0:00:16]}  Ke7 {[%clk 0:00:11]} 69. Bc5+ {[%clk 0:00:16]}  Kf7 {[%clk 0:00:10]} 70. Be3 {[%clk 0:00:14]}  Ke7 {[%clk 0:00:09]} 71. Bd4 {[%clk 0:00:15]}  Kf7 {[%clk 0:00:09]} 72. Kd6 {[%clk 0:00:16]}  Ba8 {[%clk 0:00:05]} 73. Kd7 {[%clk 0:00:14]}  g5 {[%clk 0:00:05]} 74. Be3 {[%clk 0:00:15]}  gxh4 {[%clk 0:00:05]} 75. Kc7 {[%clk 0:00:10]}  d4 {[%clk 0:00:05]} 76. Bxd4 {[%clk 0:00:08]}  h3 {[%clk 0:00:05]} 77. Bg1 {[%clk 0:00:08]}  Be4 {[%clk 0:00:05]} 78. Kd6 {[%clk 0:00:07]}  Kg6 {[%clk 0:00:05]} 79. Ke5 {[%clk 0:00:07]}  Ba8 {[%clk 0:00:05]} 80. Kf4 {[%clk 0:00:08]}  h4 {[%clk 0:00:05]} 81. Kg4 {[%clk 0:00:08]}  Kf6 {[%clk 0:00:06]} 82. Kxh4 {[%clk 0:00:08]}  Ke6 {[%clk 0:00:07]} 83. Kxh3 {[%clk 0:00:09]}  Kd7 {[%clk 0:00:08]} 84. Kg3 {[%clk 0:00:10]}  Kc6 {[%clk 0:00:09]} 85. Kf4 {[%clk 0:00:11]}  Kb7 {[%clk 0:00:09]} 86. Ke5 {[%clk 0:00:12]}  Ka6 {[%clk 0:00:10]} 87. Ke6 {[%clk 0:00:12]}  Bc6 {[%clk 0:00:10]} 88. Kd6 {[%clk 0:00:13]}  Kb7 {[%clk 0:00:10]} 89. Bf2 {[%clk 0:00:13]}  Ka8 {[%clk 0:00:10]} 90. Kxc6 {[%clk 0:00:12]} 1/2-1/2


[Site "https://www.chess.com"]

[Event "Titled Tuesday Blitz August 22 Late 2023"]
[White "Svane, Rasmus"]
[Black "Hamitevici, Vladimir"]
[WhiteFideId "4657101"]
[BlackFideId "13902393"]
[WhiteElo "2985"]
[BlackElo "2611"]
[Result "1-0"]
[Round "3"]
[TimeControl "180+1"]
[Date "2023.08.22"]
[WhiteClock "0:01:20"]
[BlackClock "0:00:18"]
[Board "52"]

1. Nf3 {[%clk 0:03:00]}  d5 {[%clk 0:02:59]} 2. g3 {[%clk 0:03:01]}  e6 {[%clk 0:02:59]} 3. Bg2 {[%clk 0:03:01]}  Be7 {[%clk 0:02:59]} 4. O-O {[%clk 0:03:02]}  Nf6 {[%clk 0:02:57]} 5. c4 {[%clk 0:03:02]}  O-O {[%clk 0:02:57]} 6. b3 {[%clk 0:03:02]}  c5 {[%clk 0:02:51]} 7. cxd5 {[%clk 0:03:01]}  exd5 {[%clk 0:02:48]} 8. d4 {[%clk 0:03:00]}  Ne4 {[%clk 0:02:42]} 9. Bb2 {[%clk 0:02:51]}  Bf6 {[%clk 0:02:40]} 10. Nc3 {[%clk 0:02:50]}  Nc6 {[%clk 0:02:33]} 11. Na4 {[%clk 0:02:50]}  b5 {[%clk 0:02:18]} 12. Nxc5 {[%clk 0:02:49]}  Nxc5 {[%clk 0:02:18]} 13. Rc1 {[%clk 0:02:50]}  Nxb3 {[%clk 0:01:57]} 14. Qxb3 {[%clk 0:02:27]}  Na5 {[%clk 0:01:52]} 15. Qxb5 {[%clk 0:02:27]}  Nc4 {[%clk 0:01:53]} 16. Ne5 {[%clk 0:02:12]}  Be6 {[%clk 0:01:31]} 17. Nxc4 {[%clk 0:02:03]}  Rb8 {[%clk 0:01:32]} 18. Qc5 {[%clk 0:01:58]}  dxc4 {[%clk 0:01:19]} 19. Bc3 {[%clk 0:01:57]}  Qb6 {[%clk 0:01:10]} 20. Qxb6 {[%clk 0:01:54]}  axb6 {[%clk 0:01:11]} 21. d5 {[%clk 0:01:54]}  Bg4 {[%clk 0:01:10]} 22. Bxf6 {[%clk 0:01:52]}  gxf6 {[%clk 0:01:06]} 23. f3 {[%clk 0:01:52]}  Bd7 {[%clk 0:01:02]} 24. Rxc4 {[%clk 0:01:52]}  Bb5 {[%clk 0:01:02]} 25. Rg4+ {[%clk 0:01:44]}  Kh8 {[%clk 0:01:02]} 26. Kf2 {[%clk 0:01:44]}  Ra8 {[%clk 0:01:01]} 27. Rb1 {[%clk 0:01:42]}  Bd7 {[%clk 0:01:01]} 28. Rgb4 {[%clk 0:01:40]}  b5 {[%clk 0:01:02]} 29. R1b2 {[%clk 0:01:39]}  f5 {[%clk 0:00:59]} 30. Bh3 {[%clk 0:01:34]}  Rfd8 {[%clk 0:00:30]} 31. Rf4 {[%clk 0:01:32]}  Ra4 {[%clk 0:00:24]} 32. Rxa4 {[%clk 0:01:30]}  bxa4 {[%clk 0:00:25]} 33. e4 {[%clk 0:01:27]}  fxe4 {[%clk 0:00:25]} 34. Bxd7 {[%clk 0:01:25]}  Rxd7 {[%clk 0:00:26]} 35. fxe4 {[%clk 0:01:26]}  f5 {[%clk 0:00:25]} 36. Ke3 {[%clk 0:01:21]}  fxe4 {[%clk 0:00:22]} 37. Kxe4 {[%clk 0:01:20]}  Kg7 {[%clk 0:00:18]} 38. Ke5 {[%clk 0:01:20]} 1-0


[Site "https://www.chess.com"]

[Event "Titled Tuesday Blitz August 22 Late 2023"]
[White "Koziorowicz, Michal"]
[Black "Taboas Rodriguez, Daniel"]
[WhiteFideId "21809194"]
[BlackFideId "2208466"]
[WhiteElo "2702"]
[BlackElo "2545"]
[Result "0-1"]
[Round "3"]
[TimeControl "180+1"]
[Date "2023.08.22"]
[WhiteClock "0:00:04"]
[BlackClock "0:00:47"]
[Board "57"]

1. d4 {[%clk 0:03:00]}  Nf6 {[%clk 0:02:59]} 2. c4 {[%clk 0:03:01]}  g6 {[%clk 0:02:59]} 3. Nc3 {[%clk 0:03:00]}  Bg7 {[%clk 0:03:00]} 4. e4 {[%clk 0:03:00]}  d6 {[%clk 0:03:00]} 5. Be2 {[%clk 0:03:01]}  O-O {[%clk 0:03:01]} 6. Bg5 {[%clk 0:03:01]}  c5 {[%clk 0:03:00]} 7. d5 {[%clk 0:02:56]}  e6 {[%clk 0:03:00]} 8. Nf3 {[%clk 0:02:55]}  exd5 {[%clk 0:03:00]} 9. exd5 {[%clk 0:02:55]}  h6 {[%clk 0:02:59]} 10. Bh4 {[%clk 0:02:46]}  Bg4 {[%clk 0:02:49]} 11. O-O {[%clk 0:02:44]}  Nbd7 {[%clk 0:02:48]} 12. Bg3 {[%clk 0:02:42]}  Ne8 {[%clk 0:02:37]} 13. Nd2 {[%clk 0:02:31]}  Bxe2 {[%clk 0:02:36]} 14. Qxe2 {[%clk 0:02:32]}  a6 {[%clk 0:02:36]} 15. a4 {[%clk 0:02:24]}  f5 {[%clk 0:02:24]} 16. Rae1 {[%clk 0:02:03]}  f4 {[%clk 0:02:20]} 17. Qe6+ {[%clk 0:01:35]}  Kh7 {[%clk 0:02:12]} 18. Bh4 {[%clk 0:01:28]}  g5 {[%clk 0:02:12]} 19. Nce4 {[%clk 0:00:49]}  gxh4 {[%clk 0:02:02]} 20. Nxd6 {[%clk 0:00:49]}  Nxd6 {[%clk 0:01:44]} 21. Qxd6 {[%clk 0:00:50]}  Rf6 {[%clk 0:01:43]} 22. Qe7 {[%clk 0:00:45]}  Kg8 {[%clk 0:01:32]} 23. Nf3 {[%clk 0:00:30]}  h3 {[%clk 0:01:19]} 24. gxh3 {[%clk 0:00:25]}  Qxe7 {[%clk 0:01:18]} 25. Rxe7 {[%clk 0:00:25]}  Rf7 {[%clk 0:01:19]} 26. Re6 {[%clk 0:00:21]}  b5 {[%clk 0:01:09]} 27. axb5 {[%clk 0:00:20]}  axb5 {[%clk 0:01:10]} 28. cxb5 {[%clk 0:00:18]}  Rb8 {[%clk 0:01:11]} 29. Kh1 {[%clk 0:00:09]}  Rxb5 {[%clk 0:01:09]} 30. Rg1 {[%clk 0:00:10]}  Rxb2 {[%clk 0:01:06]} 31. Nh4 {[%clk 0:00:11]}  Rxf2 {[%clk 0:01:02]} 32. Reg6 {[%clk 0:00:06]}  Kh7 {[%clk 0:00:58]} 33. Nf5 {[%clk 0:00:05]}  Bf8 {[%clk 0:00:59]} 34. Nxh6 {[%clk 0:00:01]}  Bxh6 {[%clk 0:00:57]} 35. Rg8 {[%clk 0:00:01]}  Nf6 {[%clk 0:00:53]} 36. Rd8 {[%clk 0:00:02]}  Rd7 {[%clk 0:00:50]} 37. Rxd7+ {[%clk 0:00:03]}  Nxd7 {[%clk 0:00:49]} 38. Rb1 {[%clk 0:00:03]}  f3 {[%clk 0:00:47]} 39. Rb7 {[%clk 0:00:04]}  Rf1# {[%clk 0:00:47]} 0-1


[Site "https://www.chess.com"]

[Event "Titled Tuesday Blitz August 22 Late 2023"]
[White "Lacasa Diaz, Jose Antonio"]
[Black "Zhu, Jiner"]
[WhiteFideId "2203375"]
[BlackFideId "8608059"]
[WhiteElo "2354"]
[BlackElo "2656"]
[Result "0-1"]
[Round "3"]
[TimeControl "180+1"]
[Date "2023.08.22"]
[WhiteClock "0:00:48"]
[BlackClock "0:01:38"]
[Board "60"]

1. e4 {[%clk 0:03:00]}  e5 {[%clk 0:03:00]} 2. Nf3 {[%clk 0:02:59]}  Nc6 {[%clk 0:03:00]} 3. Bb5 {[%clk 0:02:58]}  a6 {[%clk 0:02:59]} 4. Ba4 {[%clk 0:02:58]}  d6 {[%clk 0:02:58]} 5. Bxc6+ {[%clk 0:02:57]}  bxc6 {[%clk 0:02:59]} 6. d4 {[%clk 0:02:58]}  exd4 {[%clk 0:02:55]} 7. Nxd4 {[%clk 0:02:59]}  Bd7 {[%clk 0:02:54]} 8. O-O {[%clk 0:02:58]}  Nf6 {[%clk 0:02:51]} 9. Re1 {[%clk 0:02:57]}  Be7 {[%clk 0:02:51]} 10. c4 {[%clk 0:02:54]}  O-O {[%clk 0:02:47]} 11. Nc3 {[%clk 0:02:50]}  Re8 {[%clk 0:02:44]} 12. b3 {[%clk 0:02:45]}  c5 {[%clk 0:02:39]} 13. Nf3 {[%clk 0:02:36]}  Bc6 {[%clk 0:02:35]} 14. Bb2 {[%clk 0:02:29]}  Bf8 {[%clk 0:02:34]} 15. Qd3 {[%clk 0:02:28]}  a5 {[%clk 0:02:24]} 16. Nd5 {[%clk 0:02:12]}  Nd7 {[%clk 0:02:24]} 17. e5 {[%clk 0:02:01]}  dxe5 {[%clk 0:02:16]} 18. Nxe5 {[%clk 0:02:01]}  Nxe5 {[%clk 0:02:15]} 19. Bxe5 {[%clk 0:01:59]}  Bd6 {[%clk 0:01:52]} 20. Bc3 {[%clk 0:01:24]}  Qg5 {[%clk 0:01:39]} 21. Rxe8+ {[%clk 0:01:07]}  Rxe8 {[%clk 0:01:38]} 22. Bxa5 {[%clk 0:00:48]}  Qe5 {[%clk 0:01:38]} 0-1


[Site "https://www.chess.com"]

[Event "Titled Tuesday Blitz August 22 Late 2023"]
[White "Hakobyan, Aram"]
[Black "Ismayil, Malak"]
[WhiteFideId "13306677"]
[BlackFideId "13412604"]
[WhiteElo "3001"]
[BlackElo "2520"]
[Result "1-0"]
[Round "3"]
[TimeControl "180+1"]
[Date "2023.08.22"]
[WhiteClock "0:02:27"]
[BlackClock "0:01:21"]
[Board "63"]

1. c4 {[%clk 0:02:59]}  e5 {[%clk 0:02:58]} 2. Nc3 {[%clk 0:02:59]}  Nf6 {[%clk 0:02:58]} 3. Nf3 {[%clk 0:03:00]}  Nc6 {[%clk 0:02:58]} 4. d4 {[%clk 0:02:57]}  exd4 {[%clk 0:02:58]} 5. Nxd4 {[%clk 0:02:58]}  Bc5 {[%clk 0:02:58]} 6. Nb3 {[%clk 0:02:51]}  Bb4 {[%clk 0:02:55]} 7. g3 {[%clk 0:02:51]}  O-O {[%clk 0:02:54]} 8. Bg2 {[%clk 0:02:50]}  Bxc3+ {[%clk 0:02:49]} 9. bxc3 {[%clk 0:02:51]}  d6 {[%clk 0:02:49]} 10. O-O {[%clk 0:02:51]}  Re8 {[%clk 0:02:48]} 11. c5 {[%clk 0:02:51]}  d5 {[%clk 0:02:41]} 12. Bg5 {[%clk 0:02:50]}  Be6 {[%clk 0:02:41]} 13. Nd4 {[%clk 0:02:50]}  Ne5 {[%clk 0:02:30]} 14. Rb1 {[%clk 0:02:49]}  Rb8 {[%clk 0:02:29]} 15. Nxe6 {[%clk 0:02:48]}  fxe6 {[%clk 0:02:19]} 16. Qa4 {[%clk 0:02:46]}  a6 {[%clk 0:02:08]} 17. Bxf6 {[%clk 0:02:41]}  Qxf6 {[%clk 0:02:06]} 18. Rxb7 {[%clk 0:02:42]}  Rbc8 {[%clk 0:01:51]} 19. Rxc7 {[%clk 0:02:41]}  Qf8 {[%clk 0:01:39]} 20. Rxc8 {[%clk 0:02:41]}  Rxc8 {[%clk 0:01:40]} 21. Qxa6 {[%clk 0:02:41]}  Rc6 {[%clk 0:01:38]} 22. Qb7 {[%clk 0:02:34]}  Qxc5 {[%clk 0:01:37]} 23. a4 {[%clk 0:02:29]}  Qxc3 {[%clk 0:01:36]} 24. a5 {[%clk 0:02:26]}  Qxa5 {[%clk 0:01:32]} 25. Qb8+ {[%clk 0:02:27]}  Kf7 {[%clk 0:01:21]} 26. Qxe5 {[%clk 0:02:27]} 1-0


[Site "https://www.chess.com"]

[Event "Titled Tuesday Blitz August 22 Late 2023"]
[White "Gurevich, Dmitry"]
[Black "Andreikin, Dmitry"]
[WhiteFideId "2000407"]
[BlackFideId "4158814"]
[WhiteElo "2518"]
[BlackElo "2980"]
[Result "0-1"]
[Round "3"]
[TimeControl "180+1"]
[Date "2023.08.22"]
[WhiteClock "0:01:34"]
[BlackClock "0:02:29"]
[Board "64"]

1. d4 {[%clk 0:03:00]}  g6 {[%clk 0:03:00]} 2. e4 {[%clk 0:02:59]}  Bg7 {[%clk 0:03:00]} 3. c3 {[%clk 0:02:59]}  d6 {[%clk 0:02:57]} 4. Nf3 {[%clk 0:02:58]}  Nc6 {[%clk 0:02:58]} 5. Bd3 {[%clk 0:02:57]}  e5 {[%clk 0:02:58]} 6. d5 {[%clk 0:02:56]}  Nce7 {[%clk 0:02:58]} 7. c4 {[%clk 0:02:56]}  f5 {[%clk 0:02:57]} 8. Nc3 {[%clk 0:02:56]}  Nf6 {[%clk 0:02:57]} 9. O-O {[%clk 0:02:52]}  O-O {[%clk 0:02:58]} 10. Re1 {[%clk 0:02:50]}  f4 {[%clk 0:02:57]} 11. c5 {[%clk 0:02:48]}  h6 {[%clk 0:02:56]} 12. cxd6 {[%clk 0:02:48]}  cxd6 {[%clk 0:02:56]} 13. b3 {[%clk 0:02:44]}  g5 {[%clk 0:02:56]} 14. Ba3 {[%clk 0:02:44]}  Ng6 {[%clk 0:02:53]} 15. Rc1 {[%clk 0:02:34]}  a6 {[%clk 0:02:53]} 16. Nd2 {[%clk 0:02:21]}  b5 {[%clk 0:02:49]} 17. Bb2 {[%clk 0:01:54]}  g4 {[%clk 0:02:47]} 18. a4 {[%clk 0:01:53]}  g3 {[%clk 0:02:43]} 19. fxg3 {[%clk 0:01:44]}  Ng4 {[%clk 0:02:31]} 20. Nf1 {[%clk 0:01:34]}  Qb6+ {[%clk 0:02:29]} 0-1


[Site "https://www.chess.com"]

[Event "Titled Tuesday Blitz August 22 Late 2023"]
[White "Sargsyan, Shant"]
[Black "Flom, Gabriel"]
[WhiteFideId "13306766"]
[BlackFideId "621650"]
[WhiteElo "2919"]
[BlackElo "2510"]
[Result "1-0"]
[Round "3"]
[TimeControl "180+1"]
[Date "2023.08.22"]
[WhiteClock "0:00:35"]
[BlackClock "0:00:08"]
[Board "67"]

1. c4 {[%clk 0:03:00]}  Nf6 {[%clk 0:02:33]} 2. Nc3 {[%clk 0:02:59]}  g6 {[%clk 0:02:31]} 3. e4 {[%clk 0:02:59]}  d6 {[%clk 0:02:32]} 4. d4 {[%clk 0:02:59]}  Bg7 {[%clk 0:02:32]} 5. h4 {[%clk 0:02:54]}  O-O {[%clk 0:02:26]} 6. Be2 {[%clk 0:02:55]}  c5 {[%clk 0:02:26]} 7. d5 {[%clk 0:02:54]}  b5 {[%clk 0:02:26]} 8. cxb5 {[%clk 0:02:52]}  a6 {[%clk 0:02:26]} 9. b6 {[%clk 0:02:50]}  Nbd7 {[%clk 0:02:15]} 10. h5 {[%clk 0:02:49]}  Rb8 {[%clk 0:02:13]} 11. a4 {[%clk 0:02:45]}  Rxb6 {[%clk 0:02:10]} 12. a5 {[%clk 0:02:43]}  Rb4 {[%clk 0:02:10]} 13. hxg6 {[%clk 0:02:37]}  hxg6 {[%clk 0:02:10]} 14. f3 {[%clk 0:02:38]}  Ne5 {[%clk 0:02:06]} 15. Nh3 {[%clk 0:02:37]}  Bxh3 {[%clk 0:02:06]} 16. Rxh3 {[%clk 0:02:37]}  Rd4 {[%clk 0:01:55]} 17. Qc2 {[%clk 0:02:35]}  Qc7 {[%clk 0:01:53]} 18. Be3 {[%clk 0:02:34]}  Rb8 {[%clk 0:01:53]} 19. Kf1 {[%clk 0:02:12]}  Rdb4 {[%clk 0:01:39]} 20. Nd1 {[%clk 0:02:12]}  c4 {[%clk 0:01:34]} 21. Bd2 {[%clk 0:02:10]}  Rb3 {[%clk 0:01:07]} 22. Bc3 {[%clk 0:02:10]}  Nh5 {[%clk 0:01:06]} 23. Qd2 {[%clk 0:02:05]}  Qc5 {[%clk 0:00:43]} 24. g4 {[%clk 0:01:57]}  Nf6 {[%clk 0:00:41]} 25. Ne3 {[%clk 0:01:48]}  Nfd7 {[%clk 0:00:24]} 26. Rc1 {[%clk 0:01:32]}  Rxb2 {[%clk 0:00:19]} 27. Bxb2 {[%clk 0:01:32]}  Rxb2 {[%clk 0:00:20]} 28. Qxb2 {[%clk 0:01:29]}  Qxe3 {[%clk 0:00:20]} 29. Rc3 {[%clk 0:00:36]}  Nd3 {[%clk 0:00:15]} 30. Bxd3 {[%clk 0:00:36]}  cxd3 {[%clk 0:00:14]} 31. Rc8+ {[%clk 0:00:36]}  Nf8 {[%clk 0:00:08]} 32. Rxf8+ {[%clk 0:00:35]} 1-0


[Site "https://www.chess.com"]